fUSD/lending_fUSD_20260324
["ID","MTS","AMOUNT","RATE_DAILY","PERIOD"]
[408834993,1774338672976,-1026.81,0.00041095,120]
[408834994,1774338672985,-1571.69,0.00041095,120]
[408834995,1774338672995,-896.49,0.00041095,2]
[408834996,1774338673005,-591.09,0.00041095,120]
[408834997,1774338673014,-543.51632596,0.00041095,120]
[408834998,1774338673023,-500.0,0.00041095,120]
[408834999,1774338673032,-500.0,0.00041095,120]
[408835000,1774338673041,-951.54,0.00041095,120]
[408835001,1774338673051,-500.0,0.00041095,120]
[408835002,1774338673060,-500.0,0.00041095,120]
[408835003,1774338673069,-500.0,0.00041095,120]
[408835004,1774338673079,-500.0,0.00041095,120]
[408835005,1774338673089,-1576.67,0.00041095,120]
[408835006,1774338673098,-500.0,0.00041095,120]
[408835007,1774338673106,-500.0,0.00041095,120]
[408835008,1774338673115,-533.43,0.00041095,120]
[408835009,1774338673124,-500.0,0.00041095,120]
[408835010,1774338673133,-1797.77,0.00041095,120]
[408835011,1774338673143,-908.05,0.00041095,120]
[408835012,1774338673152,-641.68,0.00041095,30]
[408835013,1774338673161,-500.0,0.00041095,120]
[408835014,1774338673170,-978.03,0.00041095,120]
[408835015,1774338673179,-500.0,0.00041095,120]
[408835016,1774338673187,-500.0,0.00041095,60]
[408835017,1774338673196,-500.0,0.00041095,120]
[408835018,1774338673206,-500.0,0.00041095,120]
[408835019,1774338673215,-1254.4,0.00041095,120]
[408835020,1774338673224,-377.07271691,0.00041095,30]
[408835021,1774338673233,-500.0,0.00041095,120]
[408835022,1774338673242,-500.0,0.00041095,120]
[408835023,1774338673251,-500.0,0.00041095,120]
[408835024,1774338673260,-612.09629761,0.00041095,120]
[408835025,1774338673269,-794.03,0.00041095,120]
[408835026,1774338673278,-500.0,0.00041095,120]
[408835027,1774338673287,-890.53,0.00041095,120]
[408835028,1774338673296,-500.0,0.00041095,120]
[408835029,1774338673305,-500.0,0.00041095,120]
[408835030,1774338673314,-588.33,0.00041095,120]
[408835031,1774338673323,-582.19268267,0.00041095,120]
[408835032,1774338673333,-954.83,0.00041095,120]
[408835033,1774338673341,-642.99,0.00041095,120]
[408835034,1774338673351,-2073.54,0.00041095,120]
[408835035,1774338673363,-2204.1,0.00041095,120]
[408835036,1774338673372,-945.89,0.00041095,120]
[408835037,1774338673381,-500.0,0.00041095,120]
[408835038,1774338673390,-610.5,0.00041095,120]
[408835039,1774338673400,-1685.9,0.00041095,120]
[408835040,1774338673408,-500.0,0.00041095,120]
[408835041,1774338673418,-500.0,0.00041095,120]
[408835042,1774338673427,-500.0,0.00041095,120]
[408835043,1774338673435,-500.0,0.00041095,120]
[408835044,1774338673445,-2030.17,0.00041095,30]
[408835045,1774338673454,-296.92814586,0.00041095,120]
[408835046,1774338673463,-2121.36,0.00041095,120]
[408835047,1774338673472,-2554.76,0.00041095,120]
[408835048,1774338673480,-659.65,0.00041095,120]
[408835049,1774338673489,-976.45,0.00041095,120]
[408835050,1774338673498,-500.0,0.00041095,120]
[408835051,1774338673507,-1204.77,0.00041095,120]
[408835052,1774338673517,-534.01,0.00041095,120]
[408835053,1774338673526,-500.0,0.00041095,30]
[408835054,1774338673536,-1000.85,0.00041095,120]
[408835055,1774338673545,-500.0,0.00041095,120]
[408835056,1774338673555,-618.78,0.00041095,120]
[408835057,1774338673564,-500.0,0.00041095,120]
[408835058,1774338673573,-500.0,0.00041095,120]
[408835059,1774338673583,-758.91,0.00041095,120]
[408835060,1774338673592,-500.0,0.00041095,120]
[408835061,1774338673602,-500.0,0.00041095,120]
[408835062,1774338673611,-500.0,0.00041095,120]
[408835063,1774338673620,-500.0,0.00041095,120]
[408835064,1774338673629,-1087.07,0.00041095,120]
[408835065,1774338673639,-522.61243477,0.00041095,120]
[408835066,1774338673649,-500.0,0.00041095,120]
[408835067,1774338673658,-861.35,0.00041095,120]
[408835068,1774338673667,-639.53,0.00041095,120]
[408835069,1774338673676,-500.0,0.00041095,120]
[408835070,1774338673686,-500.0,0.00041095,120]
[408835071,1774338673695,-964.47,0.00041095,120]
[408835072,1774338673705,-1790.64,0.00041095,120]
[408835073,1774338673713,-500.0,0.00041095,120]
[408835074,1774338673723,-500.0,0.00041095,120]
[408835075,1774338673732,-500.0,0.00041095,120]
[408835076,1774338673741,-648.41048707,0.00041095,120]
[408835077,1774338673750,-1377.48,0.00041095,120]
[408835078,1774338673759,-500.0,0.00041095,120]
[408835079,1774338673767,-500.0,0.00041095,120]
[408835080,1774338673776,-817.12,0.00041095,120]
[408835081,1774338673785,-1048.96,0.00041095,120]
[408835082,1774338673794,-500.0,0.00041095,120]
[408835083,1774338673803,-617.31,0.00041095,120]
[408835084,1774338673812,-1373.09,0.00041095,120]
[408835085,1774338673822,-950.57,0.00041095,120]
[408835086,1774338673835,-500.0,0.00041095,120]
[408835087,1774338673844,-500.0,0.00041095,120]
[408835088,1774338673853,-588.26023777,0.00041095,120]
[408835089,1774338673861,-500.0,0.00041095,120]
[408835090,1774338673870,-658.92,0.00041095,120]
[408835091,1774338673879,-500.0,0.00041095,120]
[408835092,1774338673888,-1252.8,0.00041095,120]
[408835093,1774338673897,-500.0,0.00041095,120]
[408835094,1774338673906,-3697.72,0.00041095,2]
[408835095,1774338673915,-500.0,0.00041095,120]
[408835096,1774338673923,-500.0,0.00041095,120]
[408835097,1774338673932,-1527.96,0.00041095,120]
[408835098,1774338673941,-500.0,0.00041095,2]
[408835099,1774338673950,-500.0,0.00041095,120]
[408835100,1774338673959,-589.22,0.00041095,120]
[408835101,1774338673969,-500.0,0.00041095,120]
[408835102,1774338673978,-500.0,0.00041095,120]
[408835103,1774338673990,-500.0,0.00041095,120]
[408835104,1774338673999,-541.68,0.00041095,120]
[408835105,1774338674008,-641.73,0.00041095,120]
[408835106,1774338674017,-1047.63,0.00041095,120]
[408835107,1774338674026,-570.14,0.00041095,120]
[408835108,1774338674035,-500.0,0.00041095,120]
[408835109,1774338674044,-198.22136254,0.00041095,120]
[408835110,1774338674054,-500.0,0.00041095,120]
[408835111,1774338674063,-516.11,0.00041095,120]
[408835112,1774338674072,-500.0,0.00041095,120]
[408835113,1774338674080,-1329.81,0.00041095,120]
[408835114,1774338674090,-500.0,0.00041095,120]
[408835115,1774338674098,-500.0,0.00041095,120]
[408835116,1774338674107,-500.0,0.00041095,30]
[408835117,1774338674116,-358.66272103,0.00041095,120]
[408835118,1774338674125,-2000.22,0.00041095,120]
[408835119,1774338674134,-596.95518768,0.00041095,120]
[408835120,1774338674143,-500.0,0.00041095,120]
[408835121,1774338674152,-1988.85,0.00041095,120]
[408835122,1774338674161,-500.0,0.00041095,120]
[408835123,1774338674170,-500.0,0.00041095,120]
[408835124,1774338674179,-500.0,0.00041095,120]
[408835125,1774338674188,-500.0,0.00041095,35]
[408835126,1774338674197,-627.92,0.00041095,120]
[408835127,1774338674206,-500.0,0.00041095,120]
[408835128,1774338674215,-500.0,0.00041095,120]
[408835129,1774338674224,-500.0,0.00041095,120]
[408835130,1774338674233,-2821.24,0.00041095,120]
[408835131,1774338674243,-500.0,0.00041095,90]
[408835132,1774338674252,-4167.56,0.00041095,14]
[408835133,1774338674261,-500.0,0.00041095,120]
[408835134,1774338674270,-500.0,0.00041095,90]
[408835135,1774338674279,-500.0,0.00041095,120]
[408835136,1774338674288,-819.97,0.00041095,120]
[408835137,1774338674297,-688.15,0.00041095,120]
[408835138,1774338674306,-500.0,0.00041095,120]
[408835139,1774338674316,-1590.35,0.00041095,120]
[408835140,1774338674324,-500.0,0.00041095,120]
[408835141,1774338674334,-1024.12,0.00041095,120]
[408835142,1774338674343,-500.0,0.00041095,120]
[408835143,1774338674353,-500.0,0.00041095,120]
[408835144,1774338674366,-1947.88,0.00041095,120]
[408835145,1774338674377,-500.0,0.00041095,120]
[408835146,1774338674386,-500.0,0.00041095,120]
[408835147,1774338674395,-500.0,0.00041095,120]
[408835148,1774338674406,-500.0,0.00041095,120]
[408835149,1774338674416,-659.88,0.00041095,120]
[408835150,1774338674425,-810.31,0.00041095,120]
[408835151,1774338674435,-500.0,0.00041095,120]
[408835152,1774338674444,-500.0,0.00041095,120]
[408835153,1774338674454,-787.69,0.00041095,120]
[408835154,1774338674464,-515.79,0.00041095,120]
[408835155,1774338674473,-698.8,0.00041095,120]
[408835156,1774338674482,-653.93,0.00041095,120]
[408835157,1774338674492,-866.06,0.00041095,120]
[408835158,1774338674501,-2147.96,0.00041095,120]
[408835159,1774338674510,-936.69,0.00041095,120]
[408835160,1774338674519,-500.0,0.00041095,120]
[408835161,1774338674528,-627.57,0.00041095,120]
[408835162,1774338674537,-500.0,0.00041095,120]
[408835163,1774338674547,-898.82,0.00041095,120]
[408835164,1774338674556,-1680.93,0.00041095,120]
[408835165,1774338674565,-500.0,0.00041095,120]
[408835166,1774338674574,-500.0,0.00041095,120]
[408835167,1774338674585,-516.86,0.00041095,120]
[408835168,1774338674595,-1731.35,0.00041095,120]
[408835169,1774338674604,-570.78,0.00041095,120]
[408835170,1774338674613,-1894.96,0.00041095,120]
[408835171,1774338674622,-500.0,0.00041095,120]
[408835172,1774338674631,-500.0,0.00041095,120]
[408835173,1774338674640,-500.0,0.00041095,120]
[408835174,1774338674650,-833.21,0.00041095,120]
[408835175,1774338674659,-500.0,0.00041095,120]
[408835176,1774338674668,-500.0,0.00041095,120]
[408835177,1774338674678,-678.17,0.00041095,120]
[408835178,1774338674687,-500.0,0.00041095,120]
[408835179,1774338674696,-210.92163339,0.00041095,120]
[408835180,1774338674706,-1154.53,0.00041095,120]
[408835181,1774338674715,-532.48,0.00041095,120]
[408835182,1774338674724,-500.0,0.00041095,120]
[408835183,1774338674733,-1168.04,0.00041095,120]
[408835184,1774338674742,-500.0,0.00041095,120]
[408835185,1774338674752,-625.73993663,0.00041095,120]
[408835186,1774338674761,-1084.15,0.00041095,120]
[408835187,1774338674770,-500.0,0.00041095,120]
[408835188,1774338674779,-1543.41,0.00041095,120]
[408835189,1774338674788,-507.54,0.00041095,60]
[408835190,1774338674798,-524.04,0.00041095,120]
[408835191,1774338674807,-1735.5,0.00041095,120]
[408835192,1774338674816,-528.45,0.00041095,120]
[408835193,1774338674825,-500.0,0.00041095,120]
[408835194,1774338674837,-500.0,0.00041095,120]
[408835195,1774338674846,-500.0,0.00041095,120]
[408835196,1774338674856,-500.0,0.00041095,120]
[408835197,1774338674865,-1522.45,0.00041095,120]
[408835198,1774338674874,-500.0,0.00041095,120]
[408835199,1774338674883,-500.0,0.00041095,120]
[408835200,1774338674892,-1193.94,0.00041095,120]
[408835201,1774338674902,-1728.67,0.00041095,120]
[408835202,1774338674911,-2483.59,0.00041095,120]
[408835203,1774338674923,-500.0,0.00041095,120]
[408835204,1774338674934,-500.0,0.00041095,120]
[408835205,1774338674943,-500.0,0.00041095,120]
[408835206,1774338674952,-500.0,0.00041095,120]
[408835207,1774338674961,-500.0,0.00041095,120]
[408835208,1774338674971,-1145.4,0.00041095,120]
[408835209,1774338674980,-500.0,0.00041095,120]
[408835210,1774338674989,-500.0,0.00041095,120]
[408835211,1774338674999,-500.0,0.00041095,120]
[408835212,1774338675008,-500.0,0.00041095,120]
[408835213,1774338675018,-785.33,0.00041095,120]
[408835214,1774338675027,-500.0,0.00041095,120]
[408835215,1774338675037,-500.0,0.00041095,120]
[408835216,1774338675046,-500.0,0.00041095,120]
[408835217,1774338675056,-500.0,0.00041095,120]
[408835218,1774338675065,-500.0,0.00041095,120]
[408835219,1774338675074,-773.31,0.00041095,120]
[408835220,1774338675084,-802.88,0.00041095,120]
[408835221,1774338675094,-504.31,0.00041095,120]
[408835222,1774338675240,-500.0,0.00041095,120]
[408835223,1774338675250,-500.0,0.00041095,120]
[408835224,1774338675259,-1766.83,0.00041095,120]
[408835225,1774338675269,-500.0,0.00041095,120]
[408835226,1774338675278,-766.14,0.00041095,120]
[408835227,1774338675288,-500.0,0.00041095,120]
[408835228,1774338675297,-500.0,0.00041095,120]
[408835229,1774338675307,-500.0,0.00041095,120]
[408835230,1774338675316,-500.0,0.00041095,120]
[408835231,1774338675326,-655.33,0.00041095,120]
[408835232,1774338675337,-500.0,0.00041095,120]
[408835233,1774338675347,-8117.29,0.00041095,120]
[408835234,1774338675357,-500.0,0.00041095,120]
[408835235,1774338675369,-500.0,0.00041095,120]
[408835236,1774338675380,-500.0,0.00041095,120]
[408835237,1774338675391,-1429.82,0.00041095,120]
[408835238,1774338675402,-500.0,0.00041095,120]
[408835239,1774338675413,-500.0,0.00041095,120]
[408835240,1774338675423,-500.0,0.00041095,120]
[408835241,1774338675433,-500.0,0.00041095,120]
[408835242,1774338675443,-641.76400667,0.00041095,120]
[408835243,1774338675452,-1503.53,0.00041095,120]
[408835244,1774338675462,-500.0,0.00041095,120]
[408835245,1774338675471,-1630.29,0.00041095,120]
[408835246,1774338675480,-500.0,0.00041095,120]
[408835247,1774338675490,-841.35,0.00041095,120]
[408835248,1774338675500,-624.81689807,0.00041095,120]
[408835249,1774338675509,-500.0,0.00041095,120]
[408835250,1774338675519,-680.83,0.00041095,120]
[408835251,1774338675529,-673.28,0.00041095,120]
[408835252,1774338675538,-1387.91,0.00041095,120]
[408835253,1774338675547,-500.0,0.00041095,120]
[408835254,1774338675557,-500.0,0.00041095,2]
[408835255,1774338675567,-500.0,0.00041095,7]
[408835256,1774338675577,-500.0,0.00041095,120]
[408835257,1774338675588,-1280.15,0.00041095,120]
[408835258,1774338675597,-604.72,0.00041095,120]
[408835259,1774338675607,-1687.32,0.00041095,120]
[408835260,1774338675616,-553.79,0.00041095,120]
[408835261,1774338675626,-555.52596534,0.00041095,120]
[408835262,1774338675636,-500.0,0.00041095,120]
[408835263,1774338675645,-500.0,0.00041095,120]
[408835264,1774338675655,-500.0,0.00041095,120]
[408835265,1774338675664,-500.0,0.00041095,120]
[408835266,1774338675674,-500.0,0.00041095,7]
[408835267,1774338675684,-500.0,0.00041095,120]
[408835268,1774338675693,-583.19,0.00041095,120]
[408835269,1774338675704,-500.0,0.00041095,120]
[408835270,1774338675714,-500.0,0.00041095,120]
[408835271,1774338675724,-765.82,0.00041095,120]
[408835272,1774338675734,-500.0,0.00041095,120]
[408835273,1774338675744,-500.0,0.00041095,120]
[408835274,1774338675754,-500.0,0.00041095,120]
[408835275,1774338675764,-500.0,0.00041095,120]
[408835276,1774338675774,-2264.25,0.00041095,120]
[408835277,1774338675784,-500.0,0.00041095,120]
[408835278,1774338675793,-500.0,0.00041095,120]
[408835279,1774338675802,-1037.3,0.00041095,30]
[408835280,1774338675812,-2339.0,0.00041095,120]
[408835281,1774338675822,-1084.43,0.00041095,120]
[408835282,1774338675831,-1021.05,0.00041095,120]
[408835283,1774338675841,-602.59,0.00041095,120]
[408835284,1774338675851,-500.0,0.00041095,120]
[408835285,1774338675860,-1040.73,0.00041095,120]
[408835286,1774338675870,-500.0,0.00041095,120]
[408835287,1774338675879,-500.0,0.00041095,120]
[408835288,1774338675889,-409.84706631,0.00041095,120]
[408835289,1774338675899,-851.46,0.00041095,120]
[408835290,1774338675910,-1082.75,0.00041095,120]
[408835291,1774338675920,-1633.66,0.00041095,120]
[408835292,1774338675929,-4460.36,0.00041095,120]
[408835293,1774338675940,-500.0,0.00041095,120]
[408835294,1774338675960,-500.0,0.00041095,120]
[408835295,1774338675981,-1090.06,0.00041095,120]
[408835296,1774338675992,-1298.83,0.00041095,120]
[408835297,1774338676002,-500.0,0.00041095,120]
[408835298,1774338676013,-500.0,0.00041095,120]
[408835299,1774338676023,-545.35,0.00041095,120]
[408835300,1774338676033,-500.0,0.00041095,120]
[408835301,1774338676042,-1399.28,0.00041095,120]
[408835302,1774338676052,-911.41,0.00041095,120]
[408835303,1774338676062,-500.0,0.00041095,120]
[408835304,1774338676072,-500.0,0.00041095,2]
[408835305,1774338676082,-4326.06,0.00041095,120]
[408835306,1774338676092,-637.83,0.00041095,120]
[408835307,1774338676102,-500.0,0.00041095,14]
[408835308,1774338676112,-863.52,0.00041095,60]
[408835309,1774338676121,-500.0,0.00041095,120]
[408835310,1774338676131,-521.47,0.00041095,120]
[408835311,1774338676141,-645.7720822,0.00041095,120]
[408835312,1774338676150,-500.0,0.00041095,120]
[408835313,1774338676160,-500.0,0.00041095,120]
[408835314,1774338676170,-1041.22,0.00041095,120]
[408835315,1774338676180,-500.0,0.00041095,120]
[408835316,1774338676189,-500.0,0.00041095,120]
[408835317,1774338676199,-500.0,0.00041095,120]
[408835318,1774338676209,-711.52,0.00041095,120]
[408835319,1774338676219,-2031.81,0.00041095,120]
[408835320,1774338676229,-790.74,0.00041095,120]
[408835321,1774338676239,-1067.59,0.00041095,120]
[408835322,1774338676248,-500.0,0.00041095,120]
[408835323,1774338676258,-500.0,0.00041095,120]
[408835324,1774338676268,-500.0,0.00041095,120]
[408835325,1774338676277,-1560.13,0.00041095,120]
[408835326,1774338676287,-500.0,0.00041095,120]
[408835327,1774338676297,-1154.84,0.00041095,120]
[408835328,1774338676307,-500.0,0.00041095,120]
[408835329,1774338676316,-2348.54,0.00041095,120]
[408835330,1774338676325,-1104.3,0.00041095,120]
[408835331,1774338676336,-500.0,0.00041095,120]
[408835332,1774338676346,-500.0,0.00041095,120]
[408835333,1774338676355,-500.0,0.00041095,60]
[408835334,1774338676369,-1021.53,0.00041095,120]
[408835335,1774338676378,-541.43,0.00041095,120]
[408835336,1774338676388,-500.0,0.00041095,120]
[408835337,1774338676399,-592.83,0.00041095,120]
[408835338,1774338676408,-519.74,0.00041095,120]
[408835339,1774338676417,-500.0,0.00041095,120]
[408835340,1774338676427,-500.0,0.00041095,120]
[408835341,1774338676437,-858.21,0.00041095,120]
[408835342,1774338676446,-535.0,0.00041095,120]
[408835343,1774338676456,-500.0,0.00041095,120]
[408835344,1774338676465,-500.0,0.00041095,120]
[408835345,1774338676474,-1539.96,0.00041095,120]
[408835346,1774338676484,-500.0,0.00041095,120]
[408835347,1774338676493,-500.0,0.00041095,2]
[408835348,1774338676503,-500.0,0.00041095,120]
[408835349,1774338676513,-1598.49,0.00041095,120]
[408835350,1774338676524,-813.09,0.00041095,120]
[408835351,1774338676534,-2149.78,0.00041095,120]
[408835352,1774338676544,-500.0,0.00041095,120]
[408835353,1774338676554,-500.0,0.00041095,120]
[408835354,1774338676564,-513.33,0.00041095,120]
[408835355,1774338676574,-743.4779064,0.00041095,120]
[408835356,1774338676586,-500.70987798,0.00041095,120]
[408835357,1774338676596,-500.0,0.00041095,120]
[408835358,1774338676607,-833.01,0.00041095,120]
[408835359,1774338676618,-500.0,0.00041095,120]
[408835360,1774338676629,-500.0,0.00041095,120]
[408835361,1774338676640,-500.0,0.00041095,120]
[408835362,1774338676652,-656.49,0.00041095,120]
[408835363,1774338676662,-500.0,0.00041095,120]
[408835364,1774338676674,-700.59,0.00041095,120]
[408835365,1774338676684,-500.0,0.00041095,120]
[408835366,1774338676695,-500.0,0.00041095,120]
[408835367,1774338676706,-728.42,0.00041095,120]
[408835368,1774338676728,-500.0,0.00041095,120]
[408835369,1774338676750,-500.0,0.00041095,120]
[408835370,1774338676765,-500.0,0.00041095,120]
[408835371,1774338676777,-500.0,0.00041095,120]
[408835372,1774338676790,-500.0,0.00041095,120]
[408835373,1774338676803,-500.0,0.00041095,120]
[408835374,1774338676816,-500.0,0.00041095,120]
[408835375,1774338676829,-500.0,0.00041095,120]
[408835376,1774338676846,-500.0,0.00041095,120]
[408835377,1774338676858,-500.0,0.00041095,120]
[408835378,1774338676869,-957.25,0.00041095,120]
[408835379,1774338676879,-1844.33,0.00041095,120]
[408835380,1774338676890,-578.16318265,0.00041095,120]
[408835381,1774338676901,-500.0,0.00041095,120]
[408835382,1774338676910,-1597.38,0.00041095,120]
[408835383,1774338676922,-500.0,0.00041095,16]
[408835384,1774338676933,-500.0,0.00041095,120]
[408835385,1774338676943,-500.0,0.00041095,120]
[408835386,1774338676956,-154.0,0.000411,120]
[408835387,1774338676966,-151.0,0.000412,120]
[408835388,1774338676978,-979.16666667,0.000412,30]
[408835389,1774338676990,-1093.8,0.00041344,30]
[408835390,1774338677001,-2735.451747,0.00041368,60]
[408835391,1774338677012,-2735.45174699,0.00041368,60]
[408835392,1774338677024,-590.67,0.00041369,120]
[408835393,1774338677037,-1000.0,0.00041369,120]
[408835394,1774338677049,-500.0,0.00041369,120]
[408835395,1774338677061,-500.0,0.00041369,120]
[408835396,1774338677071,-500.0,0.00041369,120]
[408835397,1774338677084,-500.0,0.00041369,120]
[408835398,1774338677095,-500.0,0.00041369,120]
[408835399,1774338677107,-500.0,0.00041369,120]
[408835400,1774338677118,-500.0,0.00041369,120]
[408835401,1774338677129,-500.0,0.00041369,120]
[408835402,1774338677141,-500.0,0.00041369,120]
[408835403,1774338677152,-500.0,0.00041369,120]
[408835404,1774338677165,-500.0,0.00041369,120]
[408835405,1774338677177,-217.15381534,0.00041369,120]
[408835406,1774338677187,-500.0,0.00041369,120]
[408835407,1774338677198,-500.0,0.00041369,120]
[408835408,1774338677209,-500.0,0.00041369,120]
[408835409,1774338677219,-500.0,0.00041369,120]
[408835410,1774338677230,-500.0,0.00041369,120]
[408835411,1774338677240,-500.0,0.00041369,120]
[408835412,1774338677251,-500.0,0.00041369,120]
[408835413,1774338677261,-500.0,0.00041369,120]
[408835414,1774338677272,-484.35286511,0.00041369,120]
[408835415,1774338677282,-565.46019134,0.00041369,120]
[408835416,1774338677293,-500.0,0.00041369,120]
[408835417,1774338677303,-500.0,0.00041369,120]
[408835418,1774338677314,-500.0,0.00041369,120]
[408835419,1774338677324,-500.0,0.00041369,120]
[408835420,1774338677336,-500.0,0.00041369,120]
[408835421,1774338677347,-500.0,0.00041369,120]
[408835422,1774338677360,-500.0,0.00041369,120]
[408835423,1774338677374,-500.0,0.00041369,120]
[408835424,1774338677385,-585.67667117,0.00041369,120]
[408835425,1774338677395,-500.0,0.00041369,120]
[408835426,1774338677406,-500.0,0.00041369,120]
[408835427,1774338677416,-500.0,0.00041369,120]
[408835428,1774338677425,-536.65110248,0.00041369,120]
[408835429,1774338677436,-497.40413178,0.00041369,120]
[408835430,1774338677446,-159.03044037,0.00041369,120]
[408835431,1774338677456,-500.0,0.00041369,120]
[408835432,1774338677467,-423.36207367,0.00041369,120]
[408835433,1774338677476,-497.46966558,0.00041369,120]
[408835434,1774338677486,-500.0,0.00041369,120]
[408835435,1774338677496,-355.8910982,0.00041369,120]
[408835436,1774338677506,-705.66,0.00041369,120]
[408835437,1774338677516,-500.0,0.00041369,120]
[408835438,1774338677526,-500.0,0.00041369,120]
[408835439,1774338677536,-943.74,0.00041369,120]
[408835440,1774338677876,-500.0,0.00041369,120]
[408835441,1774338677900,-275.4128455,0.00041369,120]
[408835442,1774338677911,-561.72253857,0.00041369,120]
[408835443,1774338677921,-500.0,0.00041369,120]
[408835444,1774338677932,-500.0,0.00041369,120]
[408835445,1774338677942,-500.0,0.00041369,120]
[408835446,1774338677953,-500.0,0.00041369,120]
[408835447,1774338677963,-347.60832423,0.00041369,120]
[408835448,1774338677973,-500.0,0.00041369,120]
[408835449,1774338677983,-507.3,0.00041369,120]
[408835450,1774338677993,-500.0,0.00041369,120]
[408835451,1774338678003,-568.39,0.00041369,120]
[408835452,1774338678014,-500.0,0.00041369,120]
[408835453,1774338678024,-729.64,0.00041369,120]
[408835454,1774338678034,-500.0,0.00041369,120]
[408835455,1774338678043,-639.9,0.00041369,120]
[408835456,1774338678054,-500.0,0.00041369,120]
[408835457,1774338678064,-500.0,0.00041369,120]
[408835458,1774338678074,-500.0,0.00041369,120]
[408835459,1774338678084,-500.0,0.00041369,14]
[408835460,1774338678094,-500.0,0.00041369,120]
[408835461,1774338678104,-500.0,0.00041369,30]
[408835462,1774338678114,-651.21,0.00041369,120]
[408835463,1774338678124,-500.0,0.00041369,120]
[408835464,1774338678134,-500.0,0.00041369,120]
[408835465,1774338678144,-586.07464941,0.00041369,120]
[408835466,1774338678155,-524.6,0.00041369,120]
[408835467,1774338678165,-978.66,0.00041369,120]
[408835468,1774338678175,-626.86329929,0.00041369,120]
[408835469,1774338678186,-500.0,0.00041369,120]
[408835470,1774338678196,-500.0,0.00041369,30]
[408835471,1774338678207,-1180.13,0.00041369,120]
[408835472,1774338678217,-500.0,0.00041369,120]
[408835473,1774338678228,-500.0,0.00041369,120]
[408835474,1774338678238,-574.37,0.00041369,120]
[408835475,1774338678248,-500.0,0.00041369,120]
[408835476,1774338678258,-1281.45,0.00041369,120]
[408835477,1774338678269,-500.0,0.00041369,120]
[408835478,1774338678279,-1329.75,0.00041369,120]
[408835479,1774338678289,-500.0,0.00041369,120]
[408835480,1774338678299,-500.0,0.00041369,120]
[408835481,1774338678309,-500.0,0.00041369,120]
[408835482,1774338678319,-500.0,0.00041369,90]
[408835483,1774338678329,-500.0,0.00041369,120]
[408835484,1774338678340,-500.0,0.00041369,120]
[408835485,1774338678350,-402.10176259,0.00041369,120]
[408835486,1774338678361,-500.0,0.00041369,120]
[408835487,1774338678372,-500.0,0.00041369,120]
[408835488,1774338678382,-500.0,0.00041369,120]
[408835489,1774338678393,-158.90306147,0.00041369,120]
[408835490,1774338678404,-500.0,0.00041369,120]
[408835491,1774338678415,-880.66,0.00041369,5]
[408835492,1774338678425,-599.98,0.00041369,120]